bitfinex/quotes_BTCUSD_20250408
["timestamp","ask_amount","ask_price","bid_price","bid_amount"]
[1744124383819,0.012733,78530.0,78525.0,0.254695]
[1744124384048,0.17996,78532.0,78524.0,0.012734]
[1744124384258,0.17996,78532.0,78523.0,0.012735]
[1744124384259,0.012734,78527.0,78512.0,0.012736]
[1744124384462,0.012734,78527.0,78518.0,0.254717]
[1744124384463,0.26744,78522.0,78518.0,0.254717]
[1744124384665,0.67215526,78524.0,78519.0,0.267448]
[1744124384864,0.254705,78522.0,78519.0,0.267448]
[1744124385114,0.012735,78523.0,78519.0,0.254714]
[1744124385285,0.68489526,78524.0,78521.0,0.254708]
[1744124385492,0.17996,78526.0,78523.0,0.254702]
[1744124385712,0.17996,78526.0,78525.0,0.267429]
[1744124385898,0.17996,78526.0,78524.0,0.172125]
[1744124386300,0.012735,78522.0,78509.0,0.012737]
[1744124386499,0.254731,78514.0,78504.0,0.049]
[1744124386700,0.254742,78511.0,78504.0,0.049]
[1744124386900,0.267488,78508.0,78501.0,0.66917]
[1744124387492,0.63033668,78508.0,78501.0,0.4144]
[1744124387696,0.63033668,78508.0,78501.0,0.669173]
[1744124387895,0.63033668,78508.0,78501.0,0.4144]
[1744124388100,0.63033668,78508.0,78500.0,0.05256878]
[1744124388329,0.63033668,78508.0,78500.0,0.30734478]
[1744124388535,0.36284868,78508.0,78506.0,0.012737]
[1744124388738,0.36284868,78508.0,78507.0,0.28573171]
[1744124388939,0.61759968,78508.0,78507.0,0.01824071]
[1744124389236,0.36284868,78508.0,78507.0,0.27299471]
[1744124389439,0.34,78508.0,78507.0,0.27299471]
[1744124389969,0.594751,78508.0,78507.0,0.01824071]
[1744124390381,0.012735,78519.0,78508.0,0.012737]
[1744124390496,0.012736,78515.0,78509.0,0.12625864]
[1744124390706,0.254742,78511.0,78507.0,0.01824071]
[1744124391179,0.254747,78510.0,78507.0,0.01824071]
[1744124391370,0.254741,78511.0,78507.0,0.01724071]
[1744124391582,0.254738,78512.0,78508.0,0.254751]
[1744124391976,0.012737,78511.0,78507.0,0.01724071]
[1744124392203,0.254751,78508.0,78507.0,0.01724071]
[1744124392424,0.254751,78508.0,78507.0,0.01824071]
[1744124392807,0.02292591,78508.0,78507.0,0.27299371]
[1744124393013,0.02292591,78508.0,78507.0,0.28473071]
[1744124393214,0.02292591,78508.0,78507.0,0.28473171]
[1744124393462,0.02292591,78511.0,78508.0,0.25475]
[1744124393823,0.02292591,78511.0,78510.0,0.267481]
[1744124394791,0.02292591,78515.0,78508.0,0.002]
[1744124395017,0.607484,78509.0,78508.0,0.002]
[1744124395449,0.607488,78508.0,78507.0,0.01724071]
[1744124395897,0.63041391,78508.0,78507.0,0.01724071]
[1744124396322,0.63958543,78508.0,78507.0,0.01724071]
[1744124397480,0.62684843,78508.0,78507.0,0.01724071]
[1744124397721,0.63958543,78508.0,78507.0,0.01724071]
[1744124398208,0.64758543,78508.0,78507.0,0.01724071]
[1744124400487,0.04009743,78508.0,78507.0,0.28473171]
[1744124400698,0.04009743,78508.0,78507.0,0.91709035]
[1744124400902,0.03092591,78508.0,78507.0,0.91709035]
[1744124401320,0.02792591,78508.0,78507.0,0.91709035]
[1744124401529,0.01989063,78531.0,78529.0,0.267416]
[1744124401748,0.02957638,78531.0,78530.0,0.254679]
[1744124401953,0.18,78535.0,78530.0,0.254679]
[1744124402160,0.267429,78525.0,78524.0,0.4144]
[1744124402598,0.012734,78528.0,78525.0,0.012734]
[1744124402599,0.34,78528.0,78525.0,0.012734]
[1744124402806,0.4268485,78534.0,78530.0,0.267412]
[1744124403026,0.41745626,78534.0,78530.0,0.12625864]
[1744124403257,0.012734,78525.0,78513.0,0.012736]
[1744124403496,0.44664114,78534.0,78524.0,0.669095]
[1744124403497,0.18,78530.0,78524.0,0.669095]
[1744124403708,0.59741626,78550.0,78544.0,0.254634]
[1744124403929,0.59741626,78550.0,78544.0,0.39362364]
[1744124403930,0.17996,78550.0,78544.0,0.39362364]
[1744124404147,0.10971247,78563.0,78544.0,0.80802364]
[1744124404364,2e-07,78545.0,78544.0,0.80802364]
[1744124404573,0.10971247,78563.0,78554.0,0.01273]
[1744124404802,0.41745626,78560.0,78554.0,0.13898864]
[1744124405014,0.10971247,78563.0,78554.0,0.14153417]
[1744124405224,2e-07,78558.0,78557.0,0.012729]
[1744124405423,2e-07,78558.0,78557.0,0.43987964]
[1744124405679,2e-07,78558.0,78557.0,0.85427964]
[1744124405916,0.11004887,78587.0,78568.0,0.267283]
[1744124406176,0.01987366,78582.0,78568.0,0.39354164]
[1744124406427,0.11004887,78587.0,78568.0,0.80794164]
[1744124406652,0.11004887,78587.0,78586.0,0.267222]
[1744124406849,0.11004887,78587.0,78586.0,0.80788064]
[1744124407264,0.0003364,78592.0,78591.0,0.267206]
[1744124407510,4e-07,78592.0,78591.0,0.44846464]
[1744124407741,1e-06,78615.0,78614.0,0.01272]
[1744124407971,1e-06,78615.0,78614.0,0.60132187]
[1744124408205,6e-07,78622.0,78621.0,0.267103]
[1744124408440,6e-07,78622.0,78621.0,0.39336164]
[1744124408665,0.00012675,78622.0,78621.0,0.39336164]
[1744124409575,0.002,78629.0,78621.0,0.39336164]
[1744124409576,6e-07,78628.0,78627.0,0.267083]
[1744124409832,0.000336,78647.0,78633.0,0.267063]
[1744124410048,0.000336,78647.0,78633.0,0.39332164]
[1744124410282,0.00023221,78634.0,78633.0,0.39832164]
[1744124410717,0.00023221,78634.0,78633.0,0.39332164]
[1744124411180,0.000336,78647.0,78640.0,0.267039]
[1744124411381,0.000336,78647.0,78646.0,0.267019]
[1744124411589,0.000336,78647.0,78646.0,0.57311764]
[1744124411802,0.00075633,78647.0,78646.0,0.61941764]
[1744124412006,0.00075633,78647.0,78646.0,0.66941764]
[1744124412219,3.3e-07,78647.0,78646.0,0.66941764]
[1744124412900,3.3e-07,78647.0,78646.0,0.61941764]
[1744124413107,3.3e-07,78647.0,78646.0,0.66941764]
[1744124413316,3.3e-07,78647.0,78646.0,0.61941764]
[1744124413531,3.3e-07,78647.0,78646.0,0.66941764]
[1744124413944,3.3e-07,78647.0,78646.0,0.67441764]
[1744124414378,3.3e-07,78647.0,78646.0,0.62241764]
[1744124414576,0.00100033,78647.0,78646.0,0.63141764]
[1744124414711,3.3e-07,78647.0,78646.0,0.66941764]
[1744124414940,0.00100033,78647.0,78646.0,0.62841764]
[1744124415146,0.00200033,78647.0,78646.0,0.63741764]
[1744124415349,0.00200033,78647.0,78646.0,0.62841764]
[1744124415568,0.00100033,78647.0,78646.0,0.17255864]
[1744124415770,0.00200033,78647.0,78646.0,0.13525864]
[1744124415983,0.00100033,78647.0,78646.0,0.12625864]
[1744124416194,0.00100033,78647.0,78646.0,0.009]
[1744124416395,0.2949344,78647.0,78646.0,0.018]
[1744124416630,0.44957533,78647.0,78646.0,0.018]
[1744124417587,0.012716,78636.0,78622.0,0.012719]
[1744124417804,0.34,78639.0,78631.0,0.012717]
[1744124418006,0.34,78639.0,78625.0,0.012718]
[1744124418205,0.34,78639.0,78626.0,0.13897664]
[1744124418206,0.34,78634.0,78626.0,0.13897664]
[1744124418418,0.254341,78635.0,78628.0,0.267078]
[1744124418625,0.012716,78635.0,78628.0,0.12625864]
[1744124418857,0.00964718,78639.0,78620.0,0.012719]
[1744124418858,0.012717,78633.0,78620.0,0.012719]
[1744124419070,0.41745626,78628.0,78621.0,0.00254358]
[1744124419269,0.67182126,78628.0,78622.0,0.254381]
[1744124419451,0.254363,78628.0,78622.0,0.39335864]
[1744124419677,0.67786929,78631.0,78624.0,0.012718]
[1744124419883,0.254355,78630.0,78624.0,0.12625864]
[1744124420085,0.254342,78635.0,78626.0,0.012718]
[1744124420294,0.01364718,78639.0,78633.0,0.012717]
[1744124420502,0.004,78639.0,78638.0,0.267045]
[1744124420707,0.015716,78639.0,78628.0,0.012718]
[1744124420917,0.254314,78643.0,78635.0,0.254337]
[1744124421125,0.254313,78643.0,78634.0,0.267059]
[1744124421373,0.00958612,78645.0,78637.0,0.254333]
[1744124421608,0.02548976,78647.0,78640.0,0.012716]
[1744124421843,0.02548976,78647.0,78641.0,0.12625864]
[1744124422056,0.254307,78645.0,78633.0,0.012717]
[1744124422271,0.001,78639.0,78637.0,0.012716]
[1744124422779,0.001,78639.0,78638.0,0.13897464]
[1744124423000,0.93216229,78650.0,78643.0,0.254313]
[1744124423244,0.02492727,78650.0,78649.0,0.012714]
[1744124423481,0.02492727,78650.0,78649.0,0.12625864]
[1744124423697,0.02492727,78650.0,78649.0,0.13897264]
[1744124423952,0.02492727,78650.0,78646.0,0.012715]
[1744124424163,0.02492727,78650.0,78649.0,0.012714]
[1744124424376,0.02492727,78650.0,78649.0,0.13897264]
[1744124424614,0.02492727,78650.0,78649.0,0.14151526]
[1744124424839,0.00312602,78650.0,78649.0,0.13897264]
[1744124425276,0.00712602,78650.0,78649.0,0.13897264]
[1744124425709,0.00312602,78650.0,78649.0,0.13897264]
[1744124425926,0.00312602,78650.0,78649.0,0.14151499]
[1744124426147,0.00812602,78650.0,78642.0,0.012715]
[1744124426403,0.00812602,78650.0,78649.0,0.012714]
[1744124426634,0.00812602,78650.0,78649.0,0.01525666]
[1744124426850,0.00812602,78650.0,78649.0,0.1415153]
[1744124426851,0.00512602,78650.0,78649.0,0.1415153]
[1744124427312,0.00512602,78650.0,78649.0,0.1881153]
[1744124427521,2e-08,78650.0,78649.0,0.2373153]
[1744124427710,1.2e-07,78654.0,78653.0,0.012714]
[1744124427967,5.2e-07,78669.0,78668.0,0.266943]
[1744124428174,5.2e-07,78669.0,78668.0,0.57272164]
[1744124428358,5.2e-07,78669.0,78668.0,0.62062164]
[1744124428564,5.2e-07,78669.0,78668.0,0.66862164]
[1744124428769,2.2e-07,78676.0,78675.0,0.01271]
[1744124428985,2.2e-07,78676.0,78675.0,0.39317864]
[1744124429235,3.2e-07,78682.0,78681.0,0.266899]
[1744124429437,0.00012634,78682.0,78681.0,0.39315764]
[1744124429847,3.4e-07,78682.0,78681.0,0.39315764]
[1744124430685,3.4e-07,78682.0,78681.0,0.39815764]
[1744124431677,0.02669827,78712.0,78711.0,0.012704]
[1744124431888,0.02682425,78712.0,78703.0,0.254118]
[1744124432092,0.02682425,78712.0,78704.0,0.012705]
[1744124432292,0.02682425,78712.0,78711.0,0.012704]
[1744124432501,0.254094,78711.0,78701.0,0.254126]
[1744124432733,0.02682425,78712.0,78705.0,0.012705]
[1744124432959,0.02682425,78712.0,78706.0,0.266815]
[1744124433219,0.02682425,78712.0,78708.0,0.266807]
[1744124433481,0.02882425,78712.0,78711.0,0.001]
[1744124433718,0.02682425,78712.0,78708.0,0.012705]
[1744124433946,0.02682425,78712.0,78708.0,0.266805]
[1744124434158,0.02682425,78712.0,78709.0,0.254098]
[1744124434377,0.02682425,78712.0,78707.0,0.254105]
[1744124434617,0.03782425,78712.0,78711.0,0.001]
[1744124435105,0.02882425,78712.0,78711.0,0.13896264]
[1744124435383,0.03282425,78712.0,78707.0,0.012705]
[1744124435617,0.03282425,78712.0,78704.0,0.254114]
[1744124435834,0.012708,78685.0,78678.0,0.01271]
[1744124436040,0.01271,78676.0,78667.0,0.266945]
[1744124436247,0.254252,78662.0,78655.0,0.012713]
[1744124436458,0.34,78679.0,78649.0,0.267007]
[1744124436459,0.254268,78657.0,78649.0,0.267007]
[1744124436665,0.254307,78646.0,78640.0,0.012716]
[1744124436865,0.267012,78648.0,78637.0,0.012716]
[1744124437101,0.254306,78646.0,78642.0,0.254316]
[1744124437366,0.67786929,78660.0,78652.0,0.254284]
[1744124437586,0.005,78693.0,78652.0,0.254284]
[1744124437587,0.51944,78670.0,78666.0,0.26695]
[1744124437794,0.17944,78670.0,78668.0,0.25423]
[1744124438043,0.17944,78670.0,78667.0,0.266945]
[1744124438262,0.17944,78670.0,78669.0,0.254229]
[1744124438471,0.17944,78670.0,78664.0,0.012712]
[1744124438689,0.17944,78670.0,78667.0,0.008]
[1744124438899,0.254232,78668.0,78667.0,0.00812602]
[1744124439113,0.606943,78668.0,78667.0,0.00812602]
[1744124439355,0.75596988,78668.0,78667.0,0.00012602]
[1744124439571,0.62971124,78668.0,78667.0,0.00012602]
[1744124440225,0.27700024,78668.0,78667.0,0.00012602]
[1744124440453,0.28971124,78668.0,78667.0,0.00012602]
[1744124440687,0.41896988,78668.0,78667.0,0.00012602]
[1744124440892,0.41596988,78668.0,78667.0,0.00012602]
[1744124441325,0.42508136,78668.0,78667.0,0.00012602]
[1744124441542,0.42508136,78668.0,78634.0,0.267058]
[1744124441543,0.267032,78642.0,78634.0,0.267058]
[1744124441759,0.267032,78642.0,78631.0,0.012717]
[1744124441760,0.786472,78642.0,78641.0,0.00212602]
[1744124441965,0.80911319,78642.0,78641.0,0.00212602]
[1744124442181,0.94448331,78642.0,78641.0,0.00212602]
[1744124442420,0.254403,78616.0,78608.0,0.012721]
[1744124442651,0.01272,78615.0,78614.0,0.00075593]
[1744124442873,0.35272,78615.0,78614.0,0.00075593]
[1744124443411,0.50174688,78615.0,78614.0,0.00075593]
[1744124443901,0.50174688,78615.0,78588.0,0.000335]
[1744124444143,0.607212,78589.0,78588.0,0.000335]
[1744124444403,0.91279064,78589.0,78588.0,0.00046115]
[1744124444660,0.93555888,78589.0,78588.0,0.00046115]
[1744124444895,0.95009973,78589.0,78588.0,0.00046115]
[1744124445210,0.66834688,78589.0,78588.0,0.00046115]
[1744124445445,0.02276824,78589.0,78588.0,0.26767615]
[1744124445689,0.02276824,78589.0,78588.0,0.44303479]
[1744124445934,0.34,78609.0,78589.0,0.267212]
[1744124445935,0.254468,78596.0,78589.0,0.267212]
[1744124446179,0.012724,78589.0,78588.0,0.00046115]
[1744124446406,0.267204,78592.0,78588.0,0.00146115]
[1744124446623,0.254484,78591.0,78588.0,0.00146115]
[1744124446833,0.267198,78595.0,78588.0,0.00146115]
[1744124446834,0.34,78599.0,78592.0,0.012723]
[1744124447051,0.34,78599.0,78594.0,0.012723]
[1744124447302,0.34,78602.0,78596.0,0.254462]
[1744124447510,0.34,78609.0,78607.0,0.267148]
[1744124447716,0.012721,78607.0,78598.0,0.012722]
[1744124447928,0.012721,78607.0,78594.0,0.13898164]
[1744124448131,0.254461,78598.0,78594.0,0.12625864]
[1744124448336,0.012723,78593.0,78588.0,0.00246115]
[1744124448565,0.254485,78590.0,78588.0,0.00246115]
[1744124448791,0.267194,78595.0,78588.0,0.00246115]
[1744124449035,0.34,78605.0,78603.0,0.012722]
[1744124449307,0.34,78609.0,78603.0,0.012722]
[1744124449543,0.34,78612.0,78605.0,0.012721]
[1744124449789,0.17944,78613.0,78605.0,0.012721]
[1744124450031,0.17944,78613.0,78609.0,0.254423]
[1744124450283,0.012719,78617.0,78602.0,0.254444]
[1744124450284,0.01272,78612.0,78602.0,0.254444]
[1744124450514,0.17944,78616.0,78615.0,0.267124]
[1744124450755,0.17944,78633.0,78627.0,0.254365]
[1744124450989,0.012717,78634.0,78627.0,0.254365]
[1744124451258,0.012717,78634.0,78629.0,0.254358]
[1744124451511,0.012719,78618.0,78609.0,0.012721]
[1744124451749,0.267137,78611.0,78602.0,0.002]
[1744124451987,0.254438,78605.0,78602.0,0.002]
[1744124452223,0.254442,78604.0,78602.0,0.001]
[1744124452461,0.012722,78603.0,78602.0,0.001]
[1744124453243,0.352722,78603.0,78602.0,0.001]
[1744124453511,0.532162,78603.0,78602.0,0.00012615]
[1744124453775,0.65842064,78603.0,78602.0,0.00012615]
[1744124454037,0.68101278,78603.0,78602.0,0.00012615]
[1744124454285,0.607212,78589.0,78588.0,0.000335]
[1744124454517,0.73347064,78589.0,78588.0,0.000335]
[1744124454949,0.75606278,78589.0,78588.0,0.000335]
[1744124455169,0.77060363,78589.0,78588.0,1e-06]
[1744124455594,0.75606278,78589.0,78588.0,1e-06]
[1744124455819,0.76506278,78589.0,78588.0,0.001001]
[1744124456237,0.63880414,78589.0,78588.0,0.001001]
[1744124456455,0.03159214,78589.0,78588.0,0.255492]
[1744124456697,0.03159214,78589.0,78588.0,0.39447464]
[1744124456923,0.17944,78617.0,78608.0,0.012721]
[1744124457144,0.012721,78606.0,78590.0,0.00254432]
[1744124457374,0.009,78589.0,78588.0,0.061825]
[1744124457576,0.009,78589.0,78588.0,0.18808364]
[1744124457784,0.25445,78601.0,78597.0,0.254462]
[1744124457985,0.254446,78602.0,78596.0,0.254463]
[1744124458193,0.254446,78603.0,78597.0,0.012723]
[1744124458331,0.69059029,78610.0,78602.0,0.254444]
[1744124458534,0.254431,78607.0,78602.0,0.254444]
[1744124458746,0.254422,78610.0,78605.0,0.254435]
[1744124458961,0.34,78611.0,78603.0,0.012722]
[1744124459184,0.00012587,78612.0,78611.0,0.01272]
[1744124459397,0.25442,78610.0,78604.0,0.12625864]
[1744124459616,0.00012587,78612.0,78604.0,0.12625864]
[1744124459830,0.001,78610.0,78608.0,0.267146]
[1744124460058,0.00012587,78612.0,78611.0,0.01272]
[1744124460276,0.00012587,78612.0,78611.0,0.13897864]
[1744124460524,0.00212587,78612.0,78611.0,0.13897864]
[1744124461144,0.00412587,78612.0,78611.0,0.13897864]
[1744124461380,0.00412587,78612.0,78611.0,0.18757864]
[1744124461790,0.00212587,78612.0,78611.0,0.18757864]
[1744124462381,0.17944,78653.0,78649.0,0.012714]
[1744124462621,0.25425,78663.0,78656.0,0.266981]
[1744124462784,0.00242059,78659.0,78658.0,0.012713]
[1744124462990,0.00242059,78659.0,78658.0,0.13897164]
[1744124463192,0.00242059,78659.0,78658.0,0.14151422]
[1744124463392,0.00242059,78659.0,78658.0,0.13897164]
[1744124463850,0.00242059,78659.0,78658.0,0.14151389]
[1744124464176,0.00442059,78659.0,78658.0,0.14151389]
[1744124464576,0.00442059,78659.0,78658.0,0.14497164]
[1744124465184,0.00442059,78659.0,78658.0,0.13897164]
[1744124465409,0.00442059,78659.0,78658.0,0.14797164]
[1744124465410,0.00242059,78659.0,78658.0,0.14797164]
[1744124465636,0.00242059,78659.0,78658.0,0.15397164]
[1744124466047,0.00242059,78659.0,78658.0,0.14797164]
[1744124466266,0.00242059,78659.0,78658.0,0.15597164]
[1744124466676,0.00242059,78659.0,78658.0,0.14797164]
[1744124466883,0.00242059,78659.0,78658.0,0.15497164]
[1744124467087,0.00242059,78659.0,78658.0,0.14597164]
[1744124467707,0.00242059,78659.0,78658.0,0.40023664]
[1744124467914,0.00242059,78659.0,78658.0,0.40623664]
[1744124468332,0.00242059,78659.0,78658.0,0.39323664]
[1744124468546,0.00242059,78659.0,78658.0,0.12625864]
[1744124468772,0.35513359,78659.0,78658.0,0.004]
[1744124468982,0.35513359,78659.0,78658.0,0.01]
[1744124469398,0.34242059,78659.0,78658.0,0.264265]
[1744124469609,0.00242059,78659.0,78658.0,0.40323664]
[1744124469824,0.00242059,78659.0,78658.0,0.39323664]
[1744124470070,0.00342059,78659.0,78658.0,0.39323664]
[1744124470275,0.00242059,78659.0,78658.0,0.39323664]
[1744124470686,5.9e-07,78659.0,78658.0,0.39323664]
[1744124470894,5.9e-07,78659.0,78658.0,0.85703664]
[1744124471105,3.9e-07,78668.0,78667.0,0.266947]
[1744124471314,0.00012648,78668.0,78667.0,0.39320564]
[1744124471522,0.00012648,78668.0,78667.0,0.80760564]
[1744124471736,4.8e-07,78668.0,78667.0,0.80760564]
[1744124471965,0.002,78689.0,78688.0,0.266876]
[1744124472176,0.002,78689.0,78688.0,0.80753464]
[1744124472812,5e-07,78691.0,78690.0,0.359469]
[1744124473019,5e-07,78691.0,78690.0,0.48572764]
[1744124473430,0.0001677,78715.0,78711.0,0.266798]
[1744124473640,0.02682432,78712.0,78711.0,0.012704]
[1744124473852,0.02682432,78712.0,78711.0,0.13896264]
[1744124474063,0.02682432,78712.0,78711.0,0.14150324]
[1744124474271,3.2e-07,78712.0,78711.0,0.14150324]
[1744124474470,3.2e-07,78712.0,78711.0,0.14150295]
[1744124474590,0.0018965,78719.0,78718.0,0.266774]
[1744124474801,0.0018965,78719.0,78718.0,0.39303264]
[1744124475201,0.0018965,78719.0,78718.0,0.80743264]
[1744124475606,5e-07,78719.0,78718.0,0.98659264]
[1744124475817,4e-07,78723.0,78722.0,0.26676]
[1744124476052,4e-07,78723.0,78722.0,0.39301864]
[1744124476254,0.0001679,78726.0,78725.0,0.26675]
[1744124476461,0.0001679,78726.0,78725.0,0.39300864]
[1744124477738,0.0001679,78726.0,78725.0,0.40200864]
[1744124478145,0.0001679,78726.0,78725.0,0.39300864]
[1744124478572,0.0001679,78726.0,78725.0,0.40100864]
[1744124478784,0.0001679,78726.0,78725.0,0.41000864]
[1744124480680,0.0001679,78726.0,78725.0,0.14325864]
[1744124480886,0.3528699,78726.0,78725.0,0.017]
[1744124481167,0.3401679,78726.0,78725.0,0.017]
[1744124481387,0.3528699,78726.0,78725.0,0.017]
[1744124481812,0.254115,78705.0,78703.0,0.4144]
[1744124482025,0.012707,78696.0,78687.0,0.012708]
[1744124482228,0.012707,78696.0,78690.0,0.012708]
[1744124482442,0.254171,78688.0,78685.0,0.00012605]
[1744124482624,0.254163,78690.0,78685.0,0.00012605]
[1744124482870,0.012708,78686.0,78685.0,0.00012605]
[1744124483077,0.254173,78687.0,78685.0,0.00012605]
[1744124483285,0.34,78689.0,78685.0,0.01283405]
[1744124483493,0.606882,78686.0,78685.0,0.00012605]
[1744124483682,0.73314064,78686.0,78685.0,0.00012605]
[1744124483881,0.606882,78686.0,78685.0,0.00312605]
[1744124484493,0.606882,78686.0,78685.0,0.00012605]
[1744124484698,0.606882,78686.0,78685.0,0.00212605]
[1744124484913,0.606931,78672.0,78655.0,0.254272]
[1744124485162,0.266931,78672.0,78652.0,0.266998]
[1744124485367,0.01271,78678.0,78668.0,0.25423]
[1744124485572,0.01271,78678.0,78645.0,0.4144]
[1744124485573,0.012711,78672.0,78645.0,0.4144]
[1744124485779,0.012711,78672.0,78657.0,0.012713]
[1744124485928,0.012711,78672.0,78655.0,0.012713]
[1744124486137,0.012711,78672.0,78671.0,0.006]
[1744124486346,0.266927,78676.0,78671.0,0.006]
[1744124486347,0.012709,78680.0,78671.0,0.006]
[1744124486587,0.012709,78680.0,78674.0,0.25421]
[1744124486917,0.2542,78679.0,78673.0,0.254215]
[1744124487138,0.012709,78683.0,78671.0,0.006]
[1744124487139,0.254214,78674.0,78671.0,0.006]
[1744124487352,0.002,78672.0,78671.0,0.006]
[1744124487574,0.002,78672.0,78671.0,0.018711]
[1744124487777,0.254181,78684.0,78677.0,0.01271]
[1744124487988,0.01271,78678.0,78671.0,0.015711]
[1744124488198,0.256199,78679.0,78672.0,0.012711]
[1744124488410,0.002,78679.0,78676.0,0.01271]
[1744124488625,0.002,78679.0,78676.0,0.266915]
[1744124488892,0.002,78679.0,78674.0,0.01271]
[1744124489095,0.002,78679.0,78675.0,0.266913]
[1744124489320,0.002,78679.0,78678.0,0.26691]
[1744124489531,0.67786929,78700.0,78693.0,0.012707]
[1744124489743,0.254141,78697.0,78692.0,0.266861]
[1744124489956,0.266843,78698.0,78693.0,0.25415]
[1744124490173,0.00012591,78703.0,78699.0,0.254132]
[1744124490381,0.012706,78702.0,78692.0,0.012707]
[1744124490586,0.254127,78701.0,78697.0,0.254137]
[1744124490793,0.00012591,78703.0,78697.0,0.12625864]
[1744124491023,0.00012591,78703.0,78699.0,0.012706]
[1744124491224,0.00012591,78703.0,78700.0,0.012706]
[1744124491428,0.00012591,78703.0,78701.0,0.254125]
[1744124491636,0.34012591,78703.0,78697.0,0.12625864]
[1744124491874,0.012706,78702.0,78693.0,0.254152]
[1744124492081,0.34012591,78703.0,78697.0,0.006]
[1744124492285,0.34012591,78703.0,78702.0,0.266829]
[1744124492749,0.00012591,78703.0,78702.0,0.266829]
[1744124492974,0.00012591,78703.0,78697.0,0.266843]
[1744124492975,0.012706,78702.0,78701.0,0.001]
[1744124493204,0.34,78702.0,78701.0,0.001]
[1744124493429,0.352706,78702.0,78701.0,0.001]
[1744124494131,0.34,78700.0,78695.0,0.012707]
[1744124494359,0.001,78702.0,78698.0,0.26684]
[1744124494596,0.001,78702.0,78701.0,0.266832]
[1744124494832,0.00012591,78703.0,78702.0,0.012706]
[1744124495063,0.00012591,78703.0,78702.0,0.13896464]
[1744124495339,0.00012591,78703.0,78697.0,0.012706]
[1744124495583,0.00012591,78703.0,78702.0,0.012706]
[1744124496028,0.00012591,78703.0,78702.0,0.015706]
[1744124496253,0.00012591,78703.0,78702.0,0.003]
[1744124496486,0.00012591,78703.0,78702.0,0.015706]
[1744124497167,0.00012591,78703.0,78702.0,0.269829]
[1744124497549,0.00012591,78703.0,78702.0,0.271829]
[1744124497868,0.00012591,78703.0,78702.0,0.39508764]
[1744124498297,0.00012591,78703.0,78702.0,0.39308764]
[1744124498522,0.00012591,78703.0,78702.0,0.39908764]
[1744124498742,0.00012591,78703.0,78702.0,0.272829]
[1744124498972,0.60694991,78703.0,78702.0,0.006]
[1744124499220,0.34012591,78703.0,78702.0,0.006]
[1744124499456,0.34012591,78703.0,78702.0,0.272829]
[1744124499921,0.00012591,78703.0,78702.0,0.270829]
[1744124500123,0.00012591,78703.0,78702.0,0.006]
[1744124500359,0.00012591,78703.0,78702.0,0.272829]
[1744124500569,0.00012591,78703.0,78702.0,0.270829]
[1744124500828,0.00012591,78703.0,78702.0,0.266829]
[1744124501025,0.34012591,78703.0,78702.0,0.002]
[1744124501279,0.34012591,78703.0,78702.0,0.272829]
[1744124501495,0.34012591,78703.0,78702.0,0.002]
[1744124501743,0.34012591,78703.0,78702.0,0.270829]
[1744124501964,0.34012591,78703.0,78702.0,0.268829]
[1744124502197,0.00012591,78703.0,78702.0,0.268829]
[1744124502428,0.00012591,78703.0,78702.0,0.39808764]
[1744124502657,0.26694991,78703.0,78702.0,0.002]
[1744124502880,0.34,78700.0,78691.0,0.012707]
[1744124503089,1.27199929,78700.0,78694.0,0.012707]
[1744124503295,1.01786929,78700.0,78697.0,0.254136]
[1744124503520,1.01786929,78700.0,78697.0,0.266845]
[1744124503725,0.34,78700.0,78699.0,0.266838]
[1744124503942,0.01383091,78703.0,78698.0,0.254135]
[1744124504144,0.012706,78702.0,78695.0,0.254144]
[1744124504360,0.34,78695.0,78693.0,0.254151]
[1744124504619,0.34,78695.0,78694.0,0.266855]
[1744124504844,0.34,78695.0,78694.0,0.39311364]
[1744124505528,0.254145,78695.0,78691.0,0.254156]
[1744124505762,0.594144,78696.0,78692.0,0.254152]
[1744124505994,0.34,78696.0,78692.0,0.254155]
[1744124506204,0.34,78696.0,78693.0,0.254149]
[1744124506674,0.69057529,78701.0,78693.0,0.254149]
[1744124506675,0.67786929,78710.0,78702.0,0.266829]
[1744124506893,0.179,78721.0,78702.0,0.39308764]
[1744124506894,0.012703,78719.0,78702.0,0.39308764]
[1744124507116,0.254082,78715.0,78702.0,0.39308764]
[1744124507567,0.67786929,78720.0,78702.0,0.39308764]
[1744124507789,9.1e-07,78703.0,78702.0,0.44048764]
[1744124508018,0.0001679,78726.0,78725.0,0.26675]
[1744124508315,0.0001679,78726.0,78725.0,0.39300864]
[1744124508542,0.0001679,78726.0,78725.0,0.44040864]
[1744124508767,0.0001679,78726.0,78725.0,0.90030864]
[1744124510583,0.0001679,78726.0,78725.0,0.90430864]
[1744124511245,0.0001679,78726.0,78725.0,0.90230864]
[1744124511988,0.0001679,78726.0,78725.0,0.91130864]
[1744124512659,0.0001679,78726.0,78725.0,0.91930864]
[1744124513364,0.253998,78741.0,78738.0,0.254006]
[1744124513569,0.253991,78743.0,78737.0,0.0127]
[1744124513809,0.253995,78742.0,78739.0,0.266703]
[1744124514023,0.0127,78740.0,78732.0,0.254023]
[1744124514217,0.0127,78740.0,78733.0,0.012701]
[1744124514427,0.67786929,78741.0,78733.0,0.266721]
[1744124514660,0.254011,78737.0,78733.0,0.012701]
[1744124514869,0.0127,78740.0,78729.0,0.012701]
[1744124515073,0.0127,78740.0,78739.0,0.003]
[1744124515318,0.00058797,78744.0,78724.0,0.266752]
[1744124515319,0.012701,78732.0,78724.0,0.266752]
[1744124515547,0.012701,78731.0,78723.0,0.012702]
[1744124515823,0.254047,78726.0,78722.0,0.254058]
[1744124516047,0.254052,78724.0,78720.0,0.254065]
[1744124516264,0.34,78730.0,78727.0,0.012702]
[1744124516484,0.34,78734.0,78728.0,0.254039]
[1744124516703,0.34,78746.0,78743.0,0.266689]
[1744124516920,0.002,78749.0,78734.0,0.0127]
[1744124516921,0.34,78738.0,78735.0,0.266716]
[1744124517130,0.34,78742.0,78736.0,0.0127]
[1744124517332,0.34,78742.0,78737.0,0.25401]
[1744124517536,0.594001,78740.0,78737.0,0.25401]
[1744124517748,0.34,78740.0,78738.0,0.254006]